lending/lending_fUSD_20240731
["ID","MTS","AMOUNT","RATE_DAILY","PERIOD"]
[333727154,1722414467308,151.073117,0.00025,71]
[333727155,1722414468646,151.073117,0.00025,71]
[333727156,1722414468730,151.073117,0.00025,71]
[333727157,1722414469064,151.073117,0.00025,71]
[333727158,1722414472325,151.073117,0.00025,72]
[333727159,1722414473006,151.073117,0.00025,72]
[333727160,1722414473707,151.073117,0.00025,72]
[333727161,1722414474264,151.073117,0.00025,72]
[333727162,1722414477570,151.073117,0.00025,73]
[333727163,1722414478300,151.073117,0.00025,73]
[333727164,1722414478951,151.073117,0.00025,73]
[333727165,1722414479519,151.073117,0.00025,73]
[333727166,1722414482774,151.073117,0.00025,74]
[333727167,1722414483449,151.073117,0.00025,74]
[333727168,1722414484044,151.073117,0.00025,74]
[333727169,1722414484682,151.073117,0.00025,74]
[333727170,1722414499241,151.073117,0.00027,120]
[333727171,1722414500992,151.073117,0.00027,120]
[333727172,1722414501793,151.073117,0.00027,120]
[333727208,1722414631651,-253.83,8.26e-05,2]
[333727211,1722414631662,-141.13956257,9.888e-05,2]
[333727215,1722414631673,-8.86043743,9.888e-05,2]
[333727216,1722414631682,-1246.88,0.00010161,2]
[333727217,1722414631691,-250.0,0.00010162,2]
[333727218,1722414631970,-154.74,0.00010201,2]
[333727219,1722414631984,-480.0,0.0001022,2]
[333727220,1722414631993,-150.340822,0.00010421,2]
[333727221,1722414632004,-160.640402,0.00010421,2]
[333727223,1722414632014,-520.0,0.00010509,2]
[333727225,1722414632024,-253.83,0.00010524,2]
[333727227,1722414632034,-160.640402,0.00010595,2]
[333727229,1722414632045,-160.640402,0.00010769,2]
[333727231,1722414632055,-6350.0,0.00010781,2]
[333727233,1722414632065,-212.0189,0.000108,2]
[333727235,1722414632074,-967.58960268,0.000108,2]
[333727237,1722414632083,-5035.44703252,0.00010842,2]
[333727239,1722414632094,-3402.97413295,0.00010842,2]
[333727241,1722414632105,-2643.90673453,0.00010842,2]
[333727243,1722414632114,-3000.0,0.0001089,2]
[333727244,1722414632124,-150.0,0.00010899,2]
[333727246,1722414632133,-1000.0,0.000109,2]
[333727248,1722414632142,-2261.0675,0.000109,2]
[333727250,1722414632153,-1606.28844364,0.000109,2]
[333727252,1722414632162,-154.17997027,0.000109,2]
[333727254,1722414632171,-158.12858035,0.000109,2]
[333727255,1722414632180,-1008.68143747,0.000109,2]
[333727256,1722414632190,-4096.78398648,0.000109,2]
[333727257,1722414632199,-744.34154502,0.000109,2]
[333727258,1722414632208,-150.340822,0.00010942,2]
[333727259,1722414632218,-160.640402,0.00010942,2]
[333727260,1722414632230,-151.03453606,0.00010986,2]
[333727261,1722414632239,-155.36,0.0001099,2]
[333727262,1722414632248,-155.36,0.0001099,2]
[333727263,1722414632257,-160.04241761,0.00011,2]
[333727264,1722414632268,-428.76338912,0.00011,2]
[333727265,1722414632279,-1003.44,0.00011,2]
[333727266,1722414632314,-455.85444,0.00011,2]
[333727267,1722414632325,-337.01913656,0.00011,2]
[333727268,1722414632336,-3255.09037,0.00011,2]
[333727269,1722414632347,-3831.37609416,0.00011,2]
[333727270,1722414632362,-800.49272762,0.00011,2]
[333727271,1722414632373,-711.72882134,0.00011,2]
[333727272,1722414632384,-432.000004,0.00011,2]
[333727273,1722414632403,-4475.52028849,0.00011,2]
[333727274,1722414632414,-3422.04110642,0.00011,2]
[333727276,1722414632425,-299.6900001,0.00011,2]
[333727278,1722414632436,-983.20722708,0.00011,2]
[333727280,1722414632447,-1033.7,0.00011,2]
[333727284,1722414632474,-439.31847844,0.00011,2]
[333727286,1722414632485,-3434.7094964,0.00011,2]
[333727288,1722414632497,-5367.40846028,0.00011,2]
[333727289,1722414632509,-389.84087267,0.00011,2]
[333727290,1722414632519,-472.14322502,0.00011,2]
[333727291,1722414632531,-748.65194149,0.00011,2]
[333727292,1722414632634,-2906.62554695,0.00011,2]
[333727293,1722414632645,-9291.90858639,0.00011,2]
[333727294,1722414632658,-9208.21907029,0.00011,2]
[333727295,1722414632669,-335.08950845,0.00011,2]
[333727296,1722414632680,-276.52,0.00011,2]
[333727297,1722414632691,-4866.61354802,0.00011,2]
[333727305,1722414637947,-210.45610078,0.00010997,2]
[333727306,1722414637961,-148.43714743,0.00011,2]
[333727307,1722414638007,-1563.60320852,0.00011,2]
[333727326,1722414640912,-861.50000005,0.00011,2]
[333727327,1722414640923,-422.95610072,0.00011,2]
[333727328,1722414640964,-666.06,0.00011,2]
[333727364,1722414642932,-7622.60905,0.00011,2]
[333727369,1722414673925,150.5,0.0001789,120]
[333727370,1722414674407,150.5,0.0001788,120]
[333727371,1722414674863,150.5,0.0001787,120]
[333727375,1722414792837,150.5,0.000178,120]
[333727377,1722414793294,150.5,0.0001779,120]
[333727378,1722414793747,150.5,0.0001778,120]
[333727379,1722414926351,263.82,0.0001337,30]
[333727380,1722415097777,50000.0,0.00031524,34]
[333727381,1722415104155,1000.0,0.00031524,30]
[333727382,1722415105045,1000.0,0.00031524,30]
[333727383,1722415105607,1000.0,0.00031524,30]
[333727384,1722415106172,1000.0,0.00031524,30]
[333727385,1722415106802,1000.0,0.00031524,30]
[333727386,1722415107483,1000.0,0.00031524,30]
[333727387,1722415109215,1000.0,0.00031524,30]
[333727388,1722415109641,1000.0,0.00031524,30]
[333727389,1722415112553,1000.0,0.00031524,30]
[333727390,1722415113147,1000.0,0.00031524,30]
[333727391,1722415113762,1000.0,0.00031524,30]
[333727392,1722415117657,1000.0,0.00031524,30]
[333727393,1722415118514,1000.0,0.00031524,30]
[333727394,1722415119366,1000.0,0.00031524,30]
[333727395,1722415120288,1000.0,0.00031524,30]
[333727396,1722415120827,1000.0,0.00031524,30]
[333727397,1722415121364,1000.0,0.00031524,30]
[333727398,1722415121956,1000.0,0.00031524,30]
[333727399,1722415122547,1000.0,0.00031524,30]
[333727400,1722415123181,210.08088475,0.00031524,30]
[333727401,1722415428780,241.83,0.0001337,30]
[333727402,1722415454858,2000.0,0.00031524,30]
[333727403,1722415563796,2000.0,0.00031524,30]
[333727413,1722415763410,50000.0,0.00031524,30]
[333727436,1722415832233,-228.44,8.544e-05,2]
[333727438,1722415832243,-1250.0,0.0001,2]
[333727440,1722415832253,-298.64280494,0.000105,2]
[333727442,1722415832262,-623.0156,0.00010699,2]
[333727444,1722415832271,-1817.57578316,0.00010799,3]
[333727446,1722415832281,-1937.05551355,0.00010799,2]
[333727448,1722415832290,-300.0,0.00010799,2]
[333727450,1722415832299,-25725.77029834,0.000108,2]
[333727453,1722415832315,-544.90077358,0.000108,2]
[333727455,1722415832326,-333.47900005,0.000108,2]
[333727459,1722415832354,-942.79018682,0.000108,2]
[333727461,1722415832365,-17636.1149192,0.000108,2]
[333727467,1722415832408,-935.25814264,0.000108,2]
[333727470,1722415832431,-4555.22356862,0.000108,2]
[333727482,1722415832565,-9457.79447527,0.000108,2]
[333727487,1722415832669,-4687.88496515,0.000108,2]
[333727488,1722415832680,-397.56791311,0.000108,2]
[333727489,1722415832691,-302.11780374,0.000108,2]
[333727490,1722415832706,-389.00967572,0.000108,2]
[333727491,1722415832718,-997.8724334,0.000108,2]
[333727492,1722415832744,-1074.32,0.000108,2]
[333727493,1722415832755,-1474.47,0.000108,2]
[333727494,1722415832766,-652.81253194,0.000108,2]
[333727496,1722415838151,-1000.0,0.00010368,2]
[333727497,1722415838160,-215.6173573,0.00010797,2]
[333727498,1722415838170,-531832.89315156,0.000108,2]
[333727499,1722415838245,-10441.17998013,0.000108,2]
[333727500,1722415838256,-139164.37534587,0.000108,2]
[333727501,1722415838267,-4962.81,0.000108,2]
[333727651,1722415840070,-1991.33445745,0.000108,2]
[333727668,1722415840228,-71488.47131589,0.000108,2]
[333727671,1722415840252,-18443.1678,0.000108,2]
[333727677,1722415840352,-6459.08376424,0.000108,2]
[333727915,1722415842939,-250.0,0.00010633,2]
[333727917,1722415842950,-176.28519702,0.000108,2]
[333727920,1722415842974,-1160.02723563,0.000108,2]
[333727934,1722415843097,-269104.85927806,0.000108,2]
[333727936,1722415843109,-3267.25314125,0.000108,2]
[333727939,1722415843125,-5296.76582824,0.000108,2]
[333727941,1722415843139,-9013.5259233,0.000108,2]
[333727952,1722415843241,-2698.12,0.000108,2]
[333727959,1722415843296,-292.35005528,0.000108,2]
[333728037,1722415845996,-384.50318454,0.000108,2]
[333728038,1722415846058,-1573.58351148,0.000108,2]
[333728039,1722415846115,-2925.7355855,0.000108,2]
[333728040,1722415846127,-369.15130269,0.000108,2]
[333728041,1722415846171,-1058.18632061,0.000108,2]
[333728046,1722415846288,-847521.03209608,0.000108,2]
[333728177,1722415908471,150.0,0.00025,60]
[333728178,1722415927735,418.64,0.0001337,30]
[333728181,1722416488157,383.75,0.0001337,30]
[333728236,1722417032176,-255.59,8.219e-05,2]
[333728237,1722417032185,-268.472437,9.743e-05,2]
[333728238,1722417032194,-300.0,9.792e-05,2]
[333728239,1722417032203,-8200.10307481,9.793e-05,2]
[333728240,1722417032224,-1200.0,9.793e-05,2]
[333728241,1722417032236,-463.9638686,9.793e-05,2]
[333728242,1722417032283,-641.47562177,9.793e-05,2]
[333728243,1722417032294,-1174.98131028,9.793e-05,2]
[333728244,1722417032345,-10798.23612454,9.793e-05,2]
[333728245,1722417032355,-800.0,9.793e-05,2]
[333728246,1722417032366,-2774.99,9.837e-05,2]
[333728247,1722417032375,-796.69,9.841e-05,2]
[333728248,1722417032384,-250.0,9.85e-05,2]
[333728249,1722417032394,-200.0,9.86e-05,2]
[333728250,1722417032403,-1250.0,0.0001,2]
[333728251,1722417032413,-228.74,0.00010207,2]
[333728252,1722417032422,-499.99,0.00010215,2]
[333728253,1722417032431,-150.0,0.00010215,2]
[333728254,1722417032440,-3452.68377484,0.00010216,2]
[333728255,1722417032451,-1415.32309103,0.00010216,2]
[333728264,1722417038014,-1197.87925896,0.00010216,2]
[333728265,1722417038069,-659.75132017,0.00010216,2]
[333728266,1722417038081,-1120.66502401,0.00010216,2]
[333728267,1722417038183,-7742.53073099,0.00010216,2]
[333728268,1722417038193,-1480.87,0.00010216,2]
[333728269,1722417038202,-6169.1,0.00010216,2]
[333728270,1722417038212,-1714.6052704,0.00010421,2]
[333728271,1722417038250,-7681.6442436,0.00010421,2]
[333728272,1722417038259,-200.760388,0.00010421,2]
[333728273,1722417038269,-7762.77513982,0.0001043,2]
[333728274,1722417038278,-255.59,0.00010469,2]
[333728275,1722417038288,-9396.249514,0.00010552,2]
[333728276,1722417038297,-9396.249514,0.00010682,2]
[333728277,1722417038306,-532.78,0.000107,3]
[333728278,1722417038316,-1000.0,0.000107,2]
[333728279,1722417038325,-4986.8755,0.000107,2]
[333728280,1722417038334,-1767.7101,0.000107,2]
[333728281,1722417038344,-189.01688898,0.000107,2]
[333728282,1722417038353,-420.0,0.00010772,2]
[333728283,1722417038362,-153.81838546,0.00010797,2]
[333728284,1722417038372,-317618.40434626,0.000108,2]
[333728285,1722417038385,-605937.51449134,0.000108,2]
[333728286,1722417038394,-3000.0,0.000108,2]
[333728287,1722417038404,-9396.249514,0.00010812,2]
[333728288,1722417038413,-155.36,0.000109,2]
[333728289,1722417038423,-9396.249514,0.00010942,2]
[333728290,1722417038432,-1500.0,0.00010959,5]
[333728291,1722417038442,-379.52024662,0.00010979,2]
[333728292,1722417038451,-155.36,0.0001099,2]
[333728293,1722417038460,-155.36,0.0001099,2]
[333728294,1722417038469,-922.91031276,0.00010997,2]
[333728295,1722417038479,-204.39078492,0.00010999,2]
[333728296,1722417038489,-2104.8814541,0.00010999,2]
[333728297,1722417038498,-150.0,0.00010999,2]
[333728298,1722417038508,-150.0,0.00010999,7]
[333728299,1722417038518,-500.0,0.00010999,2]
[333728300,1722417038527,-171.08094541,0.00010999,2]
[333728301,1722417038536,-448820.46137685,0.00011,2]
[333728304,1722417038624,-794868.78691135,0.00011,2]
[333728305,1722417038633,-1022508.10926492,0.00011,2]
[333728306,1722417038643,-40000.0,0.00011,2]
[333728307,1722417038653,-604158.19489265,0.00011,2]
[333728308,1722417038683,-5065.1991,0.00011,2]
[333728402,1722417040292,-1392.54925059,0.00010976,2]
[333728404,1722417040304,-2847.03878032,0.00010976,2]
[333728406,1722417040313,-158.83993511,0.00010976,2]
[333728408,1722417040322,-328.76199086,0.00011,2]
[333728410,1722417040333,-1101.1,0.00011,2]
[333728413,1722417040344,-1195.70259647,0.00011,2]
[333728415,1722417040463,-3326.309987,0.00011,2]
[333728416,1722417040521,-734869.98601807,0.00011,2]
[333728564,1722417043139,-1722.22563308,0.00011,2]
[333728566,1722417043150,-1133.29076634,0.00011,2]
[333728570,1722417043277,-11132.90869594,0.00011,2]
[333728571,1722417043288,-300.0,0.00011,2]
[333728572,1722417043299,-2745.0,0.00011,2]
[333728573,1722417043311,-735.896,0.00011,2]
[333728574,1722417043327,-400.6796969,0.00011,2]
[333728575,1722417043338,-843.194391,0.00011,2]
[333728576,1722417043349,-86728.90544926,0.00011,2]
[333728577,1722417043369,-1101.1,0.00011,2]
[333728829,1722417046157,-157.88606536,0.00010999,2]
[333728831,1722417046167,-307.55219525,0.00011,2]
[333728833,1722417046178,-2491.91983057,0.00011,2]
[333728838,1722417046218,-310.0,0.00011,2]
[333728841,1722417046230,-375.93228978,0.00011,2]
[333728843,1722417046242,-199350.00000006,0.00011,2]
[333728848,1722417046280,-312.64,0.00011,2]
[333728849,1722417046291,-550.0,0.00011,2]
[333728850,1722417046303,-3320.19317,0.00011,2]
[333728851,1722417046460,-1650.24238056,0.00011,2]
[333728866,1722417126868,351.77,0.0001337,30]
[333728868,1722417614766,322.45,0.0001337,30]
[333728869,1722417997639,500.0,0.00031525,30]
[333728870,1722418032700,50000.0,0.00031525,31]
[333728871,1722418038283,50000.0,0.00031525,32]
[333728872,1722418044013,50000.0,0.00031525,33]
[333728873,1722418055273,50000.0,0.00031525,34]
[333728875,1722418112508,500.0,0.00031539,30]
[333728877,1722418138594,295.57,0.0001337,30]
[333728878,1722418160345,200.46,0.00031539,30]
[333728894,1722418232339,-268.64,8.219e-05,2]
[333728895,1722418232349,-1076.39,9.847e-05,2]
[333728896,1722418232359,-640.0,9.92e-05,2]
[333728897,1722418232368,-252.72893978,9.92e-05,2]
[333728898,1722418232378,-250.0,9.925e-05,2]
[333728899,1722418232387,-1081.18,9.925e-05,2]
[333728900,1722418232396,-1254.37987961,9.946e-05,2]
[333728901,1722418232408,-745.62012039,9.946e-05,2]
[333728902,1722418232418,-360.0,0.00010017,2]
[333728903,1722418232427,-169.18,0.00010086,2]
[333728904,1722418232436,-200.760387,0.00010421,2]
[333728905,1722418232446,-268.64,0.00010473,2]
[333728906,1722418232459,-300.0,0.00010499,2]
[333728907,1722418232469,-31.67474043,0.000105,2]
[333728908,1722418232488,-123.91816094,0.000105,2]
[333728909,1722418232798,-999.99,0.000105,2]
[333728910,1722418232809,-499.99,0.0001054,2]
[333728911,1722418232819,-299.99,0.0001054,2]
[333728912,1722418232829,-1874.45955656,0.000106,2]
[333728913,1722418232841,-450.80964344,0.000106,2]
[333728914,1722418232851,-878.5719,0.000107,2]
[333728915,1722418232861,-274.7822,0.000107,2]
[333728916,1722418232871,-5760.52838137,0.000107,2]
[333728917,1722418232883,-5868.83892835,0.000107,2]
[333728918,1722418232894,-16644.35024115,0.000107,2]
[333728919,1722418232905,-4265.1967325,0.000107,2]
[333728920,1722418232917,-331.57,0.000107,2]
[333728921,1722418232928,-1005.48324267,0.000107,2]
[333728922,1722418232940,-1235.66988396,0.000107,2]
[333728923,1722418233076,-43445.43595729,0.000107,2]
[333728924,1722418233089,-6104.12983271,0.000107,2]
[333728925,1722418233099,-185.955392,0.00010749,2]
[333728926,1722418233109,-45119.8745079,0.00010781,2]
[333728927,1722418233154,-1629.06500109,0.00010781,2]
[333728928,1722418233165,-5674.73859651,0.00010781,2]
[333728929,1722418233177,-486.61826601,0.00010781,2]
[333728930,1722418233271,-515.4161314,0.00010781,2]
[333728933,1722418238262,-379.2916108,0.00010781,2]
[333728934,1722418238275,-3121.61111413,0.00010781,2]
[333728935,1722418238327,-55917.38477216,0.00010781,2]
[333728936,1722418238336,-245.8083,0.0001079,2]
[333728937,1722418238345,-150.0,0.00010852,2]
[333728938,1722418238356,-150.0,0.00010852,2]
[333728939,1722418238367,-14172.0939319,0.0001088,2]
[333728940,1722418238378,-401.58043566,0.0001088,2]
[333728941,1722418238389,-556.34975306,0.0001088,2]
[333728942,1722418238400,-1340.01178555,0.0001088,2]
[333728943,1722418238411,-935.50668897,0.0001088,2]
[333728944,1722418238421,-11717.6245791,0.0001089,2]
[333728945,1722418238430,-273.72894526,0.00010899,2]
[333728946,1722418238440,-273.72894518,0.00010899,2]
[333728947,1722418238449,-273.72894518,0.00010899,2]
[333728948,1722418238463,-273.72894518,0.00010899,2]
[333728949,1722418238472,-273.72894518,0.00010899,2]
[333728950,1722418238481,-273.72894518,0.00010899,2]
[333728951,1722418238491,-273.72894518,0.00010899,2]
[333728952,1722418238501,-273.72894518,0.00010899,2]
[333728953,1722418238510,-273.72894518,0.00010899,2]
[333728954,1722418238519,-16905.92622524,0.000109,2]
[333728955,1722418238546,-303.04014666,0.000109,2]
[333728956,1722418238556,-347.9736861,0.000109,2]
[333728957,1722418238567,-30502.263242,0.000109,2]
[333728958,1722418238577,-250.0,0.000109,2]
[333728959,1722418238585,-258.90893545,0.000109,2]
[333728960,1722418238597,-14.82000973,0.000109,2]
[333728961,1722418238606,-183.32141684,0.000109,2]
[333728962,1722418238618,-306.0,0.000109,2]
[333728963,1722418238628,-225.57591927,0.000109,2]
[333728964,1722418238639,-80.42408073,0.000109,2]
[333728965,1722418238648,-306.0,0.000109,2]
[333728966,1722418238657,-200.0,0.00010959,2]
[333728967,1722418238666,-10.81591927,0.00010959,2]
[333728968,1722418238678,-189.18408073,0.00010959,2]
[333728969,1722418238687,-91.22291927,0.00010959,2]
[333728971,1722418238710,-661.64708073,0.00010959,2]
[333728972,1722418238719,-250.0,0.00010959,2]
[333728973,1722418238729,-19955.58,0.00010959,2]
[333728974,1722418238739,-150.0,0.00010959,2]
[333728975,1722418238749,-155.38,0.00010988,2]
[333728976,1722418238759,-34368.45536042,0.00010989,2]
[333728977,1722418238768,-2535.63767143,0.00010997,2]
[333728979,1722418238777,-1076.38917617,0.00010997,2]
[333728981,1722418238787,-14311.8774169,0.00010998,2]
[333728982,1722418238796,-1379.1672249,0.00010998,2]
[333728983,1722418238806,-29970.5014068,0.00010998,2]
[333728984,1722418238816,-5196.3579443,0.00010998,2]
[333728985,1722418238826,-7366.7536481,0.00010998,2]
[333728986,1722418238836,-115542.0175831,0.00010998,2]
[333728987,1722418238845,-2599.0508648,0.00010998,2]
[333728988,1722418238854,-455.3850877,0.00010998,2]
[333728989,1722418238865,-1052.44072705,0.00010999,2]
[333728990,1722418238878,-150.0,0.00010999,2]
[333728991,1722418238888,-148713.63015978,0.00011,2]
[333728992,1722418238897,-1108460.90115355,0.00011,2]
[333728993,1722418238906,-719898.70331895,0.00011,2]
[333728994,1722418238915,-2000.0,0.00011,2]
[333728995,1722418238925,-5858.17155123,0.00011,2]
[333728996,1722418238933,-817136.04759363,0.00011,2]
[333728997,1722418238946,-5241.13075619,0.00011,2]
[333728998,1722418238958,-2611.44251202,0.00011,2]
[333728999,1722418238969,-2993.0852802,0.00011,2]
[333729000,1722418238980,-41464.61749848,0.00011,2]
[333729001,1722418238991,-830.97992353,0.00011,2]
[333729002,1722418239002,-4522.71124739,0.00011,2]
[333729003,1722418239013,-888.51999758,0.00011,2]
[333729004,1722418239023,-609.55481835,0.00011,2]
[333729005,1722418239046,-1921.952907,0.00011,2]
[333729006,1722418239056,-1189.99134495,0.00011,2]
[333729007,1722418239067,-1165.26374629,0.00011,2]
[333729008,1722418240433,-3000.0,0.0001089,2]
[333729009,1722418240443,-179.99005894,0.00010899,2]
[333729010,1722418240453,-306.0,0.000109,2]
[333729011,1722418240466,-82286.85051075,0.00011,2]
[333729012,1722418240477,-449.68857393,0.00011,2]
[333729013,1722418240489,-3873.0215608,0.00011,2]
[333729014,1722418240557,-1511.04304084,0.00011,2]
[333729015,1722418240620,-959.24343264,0.00011,2]
[333729016,1722418240632,-1292.76814614,0.00011,2]
[333729017,1722418240643,-51381.54351131,0.00011,2]
[333729018,1722418240655,-46095.54696496,0.00011,2]
[333729019,1722418240721,-573.27624306,0.00011,2]
[333729020,1722418240733,-13042.14392744,0.00011,2]
[333729021,1722418240746,-51500.21856545,0.00011,2]
[333729022,1722418240759,-250.0,0.00011,2]
[333729023,1722418240771,-4608.46810061,0.00011,2]
[333729024,1722418240783,-4205.95793198,0.00011,2]
[333729025,1722418240795,-4019.09127962,0.00011,2]
[333729026,1722418240807,-315.6,0.00011,2]
[333729027,1722418240821,-250.0,0.00011,2]
[333729028,1722418240848,-448.66354463,0.00011,2]
[333729050,1722418243619,-899.3916763,0.00011,2]
[333729051,1722418243632,-667.10207849,0.00011,2]
[333729052,1722418243643,-1579.72210345,0.00011,2]
[333729053,1722418243662,-1669070.89906026,0.00011,2]
[333729054,1722418243740,-835.04991627,0.00011,2]
[333729055,1722418243753,-489.29187735,0.00011,2]
[333729056,1722418243783,-3267.01706906,0.00011,2]
[333729057,1722418243794,-3799.999993,0.00011,2]
[333729058,1722418243807,-2743.43994,0.00011,2]
[333729059,1722418243819,-2227.51856177,0.00011,2]
[333729060,1722418243834,-937.09621473,0.00011,2]
[333729061,1722418243845,-404.83116397,0.00011,2]
[333729062,1722418243857,-345.020001,0.00011,2]
[333729063,1722418243868,-695.84866301,0.00011,2]
[333729064,1722418243881,-1130.77964873,0.00011,2]
[333729065,1722418243891,-2003.46125368,0.00011,2]
[333729066,1722418243903,-814.54253861,0.00011,2]
[333729087,1722418246508,-179.99005893,0.00010899,2]
[333729089,1722418246518,-306.0,0.000109,2]
[333729091,1722418246528,-6042.28513737,0.00010998,2]
[333729093,1722418246542,-17069.97537693,0.00010998,2]
[333729095,1722418246553,-526.22036353,0.00010999,2]
[333729096,1722418246563,-196440.02716261,0.00011,2]
[333729097,1722418246702,-1327.04,0.00011,2]
[333729136,1722418597657,270.93,0.0001337,30]
[333729150,1722418824464,50000.0,0.00031522,30]
[333729158,1722419170286,248.35,0.0001337,30]
[333729159,1722419265802,3528.55,0.00031522,30]
[333729170,1722419358857,501.97607525,0.00031522,30]
[333729174,1722419385411,50000.0,0.00031522,31]
[333729190,1722419431931,-5919.98142728,8.178e-05,2]
[333729191,1722419431941,-280.36,8.278e-05,2]
[333729192,1722419431951,-151.32101212,9.888e-05,2]
[333729193,1722419431961,-778.39,0.00010052,2]
[333729194,1722419431970,-306.78495373,0.00010053,2]
[333729195,1722419431982,-205.21504627,0.00010053,2]
[333729196,1722419431991,-250.0,0.00010076,2]
[333729197,1722419432000,-488.0,0.00010312,2]
[333729198,1722419432010,-499.99,0.00010466,2]
[333729199,1722419432019,-150.0,0.00010466,2]
[333729200,1722419432029,-155.59290137,0.000105,2]
[333729201,1722419432039,-280.36,0.00010542,2]
[333729202,1722419432048,-178.44,0.00010591,2]
[333729203,1722419432058,-150.0,0.00010704,2]
[333729204,1722419432067,-150.0,0.00010704,2]
[333729205,1722419432077,-300.0,0.00010899,2]
[333729206,1722419432086,-300.0,0.00010899,2]
[333729207,1722419432095,-208.14041066,0.000109,2]
[333729208,1722419432105,-539.97017679,0.000109,2]
[333729209,1722419432114,-4590.0,0.000109,2]
[333729210,1722419432124,-250.0,0.00010959,2]
[333729211,1722419432133,-151.23,0.0001099,2]
[333729212,1722419432142,-150.0,0.00010997,2]
[333729213,1722419432152,-77019.4122868,0.00010998,2]
[333729214,1722419432161,-6517.7360223,0.00010998,2]
[333729215,1722419432171,-379.4875731,0.00010998,2]
[333729216,1722419432180,-7827.3688421,0.00010998,2]
[333729217,1722419432189,-14587.1904032,0.00010998,2]
[333729218,1722419432198,-19592.9185588,0.00010998,2]
[333729219,1722419432213,-526.22036352,0.00010999,2]
[333729220,1722419432222,-82924.66899725,0.00011,2]
[333729221,1722419432238,-444.45032687,0.00011,2]
[333729222,1722419432277,-4833.61660523,0.00011,2]
[333729223,1722419432288,-862.99993351,0.00011,2]
[333729224,1722419432299,-990.05544266,0.00011,2]
[333729230,1722419437515,-570.66823873,0.000109,2]
[333729231,1722419437528,-1007.72265967,0.000109,2]
[333729232,1722419437538,-1744.75033475,0.00011,2]
[333729234,1722419437799,-577.99,0.00011,2]
[333729243,1722419439542,-22053.06857468,0.00011,2]
[333729244,1722419439850,-398405.2012253,0.00011,2]
[333729245,1722419439861,-692596.7353599,0.00011,2]
[333729268,1722419443377,-285.54725809,0.00011,2]
[333729269,1722419443395,-3918.7910805,0.00011,2]
[333729270,1722419443419,-7419.79605582,0.00011,2]
[333729271,1722419443629,-1963.95623651,0.00011,2]
[333729272,1722419443640,-549770.71494107,0.00011,2]
[333729273,1722419443650,-24991.93109326,0.00011,2]
[333729274,1722419443662,-1144.36375668,0.00011,2]
[333729275,1722419444137,-802.06340159,0.00011,2]
[333729276,1722419444183,-320.26401847,0.00011,2]
[333729283,1722419445541,-163.36125358,0.000109,2]
[333729285,1722419445551,-204.39078492,0.00010999,2]
[333729287,1722419445560,-2104.8814541,0.00010999,2]
[333729289,1722419445571,-201.32428362,0.00010999,2]
[333729290,1722419445580,-231611.85999724,0.00011,2]
[333729292,1722419445592,-4940.94527216,0.00011,2]
[333729293,1722419445603,-850.0,0.00011,2]
[333729294,1722419445614,-3285.42924044,0.00011,2]
[333729295,1722419445625,-25449.9999,0.00011,2]
[333729296,1722419445636,-8400.0,0.00011,2]
[333729298,1722419445657,-432.77116256,0.00011,2]
[333729300,1722419445668,-346.76974357,0.00011,2]
[333729301,1722419445689,-263.83706803,0.00011,2]
[333729302,1722419445908,-3360.18948631,0.00011,2]
[333729303,1722419445921,-768.85,0.00011,2]
[333729304,1722419445934,-3178.80000003,0.00011,2]
[333729309,1722419705117,-248.35,0.00018351,30]
[333729310,1722419705180,-500.0,0.00021918,30]